fUSD/lending_fUSD_20240528
["ID","MTS","AMOUNT","RATE_DAILY","PERIOD"]
[328140449,1716930675518,-500.0,0.00029315,2]
[328140450,1716930675527,-1320.63,0.00029315,2]
[328140451,1716930675537,-500.0,0.00029315,2]
[328140452,1716930675546,-151.0,0.00029315,7]
[328140453,1716930675557,-1793.48,0.00029315,2]
[328140454,1716930675566,-1192.64,0.00029315,2]
[328140455,1716930675575,-306.417667,0.00029315,7]
[328140456,1716930675584,-500.0,0.00029315,2]
[328140457,1716930675593,-500.0,0.00029315,2]
[328140458,1716930675602,-306.417667,0.00029315,7]
[328140459,1716930675611,-850.59,0.00029315,2]
[328140460,1716930675620,-550.9,0.00029315,2]
[328140461,1716930675629,-656.92,0.00029315,2]
[328140462,1716930675638,-9315.09,0.00029315,2]
[328140463,1716930675647,-151.0,0.00029315,7]
[328140464,1716930675658,-806.35,0.00029315,2]
[328140465,1716930675668,-500.0,0.00029315,2]
[328140466,1716930675677,-15327.51,0.00029315,2]
[328140467,1716930675687,-635.68,0.00029315,2]
[328140468,1716930675696,-3419.04,0.00029315,2]
[328140469,1716930675705,-1271.68,0.00029315,2]
[328140470,1716930675715,-525.9,0.00029315,2]
[328140472,1716930675725,-153.189294,0.00029315,7]
[328140473,1716930675734,-1237.95,0.00029315,2]
[328140474,1716930675743,-5036.02,0.00029315,2]
[328140475,1716930675752,-2402.16,0.00029315,2]
[328140476,1716930675761,-151.0,0.00029315,7]
[328140477,1716930675771,-583.74,0.00029315,2]
[328140478,1716930675780,-1081.68,0.00029315,2]
[328140479,1716930675789,-500.0,0.00029315,2]
[328140480,1716930675799,-2135.42,0.00029315,2]
[328140481,1716930675809,-500.0,0.00029315,2]
[328140482,1716930675819,-500.0,0.00029315,2]
[328140483,1716930675828,-151.0,0.00029315,7]
[328140484,1716930675837,-500.0,0.00029315,2]
[328140485,1716930675847,-500.0,0.00029315,2]
[328140486,1716930675857,-151.0,0.00029315,7]
[328140487,1716930675866,-874.24,0.00029315,2]
[328140488,1716930675876,-832.12,0.00029315,2]
[328140489,1716930675885,-889.71,0.00029315,2]
[328140490,1716930675895,-1494.87,0.00029315,2]
[328140491,1716930675904,-588.22,0.00029315,2]
[328140492,1716930675914,-753.43,0.00029315,2]
[328140493,1716930675923,-500.0,0.00029315,2]
[328140494,1716930675932,-656.49,0.00029315,2]
[328140495,1716930675941,-1040.11,0.00029315,2]
[328140496,1716930675951,-5379.01,0.00029315,2]
[328140497,1716930675960,-1151.4,0.00029315,2]
[328140498,1716930675969,-657.54,0.00029315,2]
[328140499,1716930675979,-2503.88,0.00029315,2]
[328140500,1716930675988,-151.0,0.00029315,7]
[328140501,1716930675998,-516.39550762,0.00029315,2]
[328140502,1716930676007,-500.0,0.00029315,2]
[328140503,1716930676017,-500.0,0.00029315,2]
[328140504,1716930676026,-992.19,0.00029315,2]
[328140505,1716930676035,-500.0,0.00029315,2]
[328140506,1716930676045,-523.58,0.00029315,2]
[328140507,1716930676055,-591.51,0.00029315,2]
[328140508,1716930676064,-2469.11,0.00029315,2]
[328140509,1716930676074,-500.0,0.00029315,2]
[328140510,1716930676083,-604.6,0.00029315,2]
[328140511,1716930676093,-500.0,0.00029315,2]
[328140512,1716930676103,-500.0,0.00029315,2]
[328140513,1716930676112,-1881.26,0.00029315,2]
[328140514,1716930676121,-151.0,0.00029315,7]
[328140515,1716930676131,-1071.3,0.00029315,2]
[328140516,1716930676140,-1270.47,0.00029315,2]
[328140517,1716930676150,-8259.77,0.00029315,2]
[328140518,1716930676159,-500.0,0.00029315,2]
[328140519,1716930676168,-1123.23,0.00029315,2]
[328140520,1716930676177,-500.0,0.00029315,2]
[328140521,1716930676186,-2563.92,0.00029315,2]
[328140522,1716930676195,-500.0,0.00029315,2]
[328140523,1716930676204,-1027.88,0.00029315,2]
[328140524,1716930676213,-772.72,0.00029315,2]
[328140525,1716930676223,-887.31,0.00029315,2]
[328140526,1716930676232,-914.87,0.00029315,2]
[328140527,1716930676241,-500.0,0.00029315,2]
[328140528,1716930676250,-4971.2,0.00029315,2]
[328140529,1716930676260,-1127.13,0.00029315,2]
[328140530,1716930676269,-571.26,0.00029315,2]
[328140531,1716930676278,-590.27,0.00029315,2]
[328140532,1716930676287,-500.0,0.00029315,2]
[328140533,1716930676296,-370.18415324,0.00029315,2]
[328140534,1716930676309,-3617.882254,0.00029315,7]
[328140535,1716930676319,-500.0,0.00029315,2]
[328140536,1716930676328,-606.32,0.00029315,2]
[328140537,1716930676337,-824.0,0.00029315,2]
[328140538,1716930676346,-3617.882254,0.00029315,7]
[328140539,1716930676358,-500.0,0.00029315,2]
[328140540,1716930676367,-853.64,0.00029315,2]
[328140541,1716930676377,-745.85,0.00029315,2]
[328140542,1716930676388,-585.71,0.00029315,2]
[328140543,1716930676398,-500.0,0.00029315,2]
[328140544,1716930676407,-1137.45,0.00029315,2]
[328140545,1716930676416,-1448.06,0.00029315,2]
[328140546,1716930676425,-539.51,0.00029315,2]
[328140547,1716930676434,-2302.76,0.00029315,2]
[328140548,1716930676444,-3336.18,0.00029315,2]
[328140549,1716930676454,-500.0,0.00029315,2]
[328140550,1716930676463,-1236.12,0.00029315,2]
[328140551,1716930676472,-500.0,0.00029315,2]
[328140552,1716930676481,-500.0,0.00029315,2]
[328140553,1716930676490,-500.0,0.00029315,2]
[328140554,1716930676499,-885.34,0.00029315,2]
[328140555,1716930676508,-291.267652,0.00029315,7]
[328140556,1716930676518,-1036.79,0.00029315,2]
[328140557,1716930676527,-602.93,0.00029315,2]
[328140558,1716930676536,-13852.98,0.00029315,2]
[328140559,1716930676546,-473.20060153,0.00029315,2]
[328140560,1716930676556,-1313.69,0.00029315,2]
[328140561,1716930676565,-291.267652,0.00029315,7]
[328140562,1716930676574,-1592.22,0.00029315,2]
[328140563,1716930676583,-916.61,0.00029315,2]
[328140564,1716930676592,-1158.67,0.00029315,2]
[328140565,1716930676602,-500.0,0.00029315,2]
[328140566,1716930676611,-2650.73,0.00029315,2]
[328140567,1716930676619,-151.0,0.00029315,7]
[328140568,1716930676628,-4639.4,0.00029315,2]
[328140569,1716930676637,-500.0,0.00029315,2]
[328140570,1716930676646,-720.94,0.00029315,2]
[328140571,1716930676656,-850.51,0.00029315,2]
[328140572,1716930676666,-151.0,0.00029315,7]
[328140573,1716930676676,-1212.71,0.00029315,2]
[328140574,1716930676685,-1305.79,0.00029315,2]
[328140575,1716930676695,-1077.58,0.00029315,2]
[328140576,1716930676704,-151.0,0.00029315,7]
[328140577,1716930676713,-564.13,0.00029315,2]
[328140578,1716930676722,-789.13,0.00029315,2]
[328140579,1716930676731,-928.91,0.00029315,2]
[328140580,1716930676740,-500.0,0.00029315,2]
[328140581,1716930676749,-500.0,0.00029315,2]
[328140582,1716930676759,-920.12,0.00029315,2]
[328140583,1716930676768,-717.42,0.00029315,2]
[328140584,1716930676777,-881.35,0.00029315,2]
[328140585,1716930676787,-500.0,0.00029315,2]
[328140586,1716930676796,-654.73,0.00029315,2]
[328140587,1716930676806,-500.0,0.00029315,2]
[328140588,1716930676815,-3338.18,0.00029315,2]
[328140589,1716930676825,-500.0,0.00029315,2]
[328140590,1716930676834,-500.0,0.00029315,2]
[328140591,1716930676843,-1966.13,0.00029315,2]
[328140592,1716930676852,-570.33,0.00029315,2]
[328140593,1716930676861,-500.0,0.00029315,2]
[328140594,1716930676871,-500.0,0.00029315,2]
[328140595,1716930676880,-500.0,0.00029315,2]
[328140596,1716930676889,-500.0,0.00029315,2]
[328140597,1716930676898,-1420.49,0.00029315,2]
[328140598,1716930676907,-1625.97,0.00029315,2]
[328140599,1716930676916,-500.0,0.00029315,2]
[328140600,1716930676925,-647.0,0.00029315,2]
[328140601,1716930676934,-500.0,0.00029315,2]
[328140602,1716930676943,-1101.55,0.00029315,2]
[328140603,1716930676952,-500.0,0.00029315,2]
[328140604,1716930676961,-5271.34,0.00029315,2]
[328140605,1716930676970,-4085.09,0.00029315,2]
[328140606,1716930676980,-896.38,0.00029315,2]
[328140607,1716930676989,-500.0,0.00029315,2]
[328140608,1716930676998,-500.0,0.00029315,2]
[328140609,1716930677007,-3085.09,0.00029315,2]
[328140610,1716930677016,-1027.97,0.00029315,2]
[328140611,1716930677026,-678.18,0.00029315,2]
[328140612,1716930677035,-607.8,0.00029315,2]
[328140613,1716930677044,-707.12,0.00029315,2]
[328140614,1716930677053,-500.0,0.00029315,2]
[328140615,1716930677063,-2974.94,0.00029315,2]
[328140616,1716930677072,-1217.15,0.00029315,2]
[328140617,1716930677081,-1190.26,0.00029315,2]
[328140618,1716930677091,-592.19,0.00029315,2]
[328140619,1716930677100,-500.0,0.00029315,2]
[328140620,1716930677112,-4371.46,0.00029315,2]
[328140621,1716930677121,-1044.37,0.00029315,2]
[328140622,1716930677131,-500.0,0.00029315,2]
[328140623,1716930677140,-500.0,0.00029315,2]
[328140624,1716930677271,-1474.98,0.00029315,2]
[328140625,1716930677280,-513.35,0.00029315,2]
[328140626,1716930677290,-500.0,0.00029315,2]
[328140627,1716930677299,-500.0,0.00029315,2]
[328140628,1716930677311,-3176.31,0.00029315,2]
[328140629,1716930677324,-687.58,0.00029315,2]
[328140630,1716930677333,-3513.06,0.00029315,2]
[328140631,1716930677342,-576.75,0.00029315,2]
[328140632,1716930677352,-500.0,0.00029315,2]
[328140633,1716930677362,-705.7,0.00029315,2]
[328140634,1716930677371,-503.73,0.00029315,2]
[328140635,1716930677381,-5000.0,0.0002932,2]
[328140636,1716930677390,-3501.74,0.00029371,2]
[328140637,1716930677403,-5000.0,0.00029376,2]
[328140638,1716930677414,-2502.45,0.00029393,2]
[328140639,1716930677423,-500.0,0.00029398,2]
[328140640,1716930677433,-1208.0,0.000294,30]
[328140641,1716930677442,-150.0,0.00029404,2]
[328140642,1716930677451,-650.81,0.00029408,2]
[328140643,1716930677461,-5000.0,0.00029409,2]
[328140644,1716930677471,-25000.0,0.0002942,2]
[328140645,1716930677482,-328.38572993,0.00029433,2]
[328140646,1716930677491,-157.052905,0.00029448,28]
[328140647,1716930677501,-226.12840034,0.000295,3]
[328140648,1716930677510,-6130.315391,0.000295,2]
[328140649,1716930677519,-2037.67493803,0.000295,2]
[328140650,1716930677528,-949.94,0.000295,2]
[328140651,1716930677537,-154.10740131,0.00029523,2]
[328140652,1716930677547,-5000.0,0.00029538,2]
[328140653,1716930677556,-500.0,0.00029589,2]
[328140654,1716930677565,-500.0,0.00029589,2]
[328140655,1716930677574,-909.32,0.00029589,2]
[328140656,1716930677583,-500.0,0.00029589,2]
[328140657,1716930677593,-500.0,0.00029589,2]
[328140658,1716930677602,-500.0,0.00029589,2]
[328140659,1716930677611,-594.79,0.00029589,2]
[328140660,1716930677620,-500.0,0.00029589,2]
[328140661,1716930677630,-569.9,0.00029589,2]
[328140662,1716930677640,-500.0,0.00029589,2]
[328140663,1716930677649,-500.0,0.00029589,2]
[328140664,1716930677658,-500.0,0.00029589,2]
[328140665,1716930677667,-500.0,0.00029589,2]
[328140666,1716930677677,-500.0,0.00029589,2]
[328140667,1716930677686,-967.79,0.00029589,2]
[328140668,1716930677695,-500.0,0.00029589,2]
[328140669,1716930677704,-1363.1,0.00029589,2]
[328140670,1716930677713,-667.3,0.00029589,2]
[328140671,1716930677722,-500.0,0.00029589,2]
[328140672,1716930677731,-500.0,0.00029589,2]
[328140673,1716930677740,-500.0,0.00029589,2]
[328140674,1716930677749,-500.0,0.00029589,2]
[328140675,1716930677758,-500.0,0.00029589,2]
[328140676,1716930677767,-500.0,0.00029589,2]
[328140677,1716930677777,-500.0,0.00029589,2]
[328140678,1716930677786,-500.0,0.00029589,2]
[328140679,1716930677795,-500.0,0.00029589,2]
[328140680,1716930677803,-813.82,0.00029589,2]
[328140681,1716930677813,-670.95,0.00029589,2]
[328140682,1716930677822,-500.0,0.00029589,2]
[328140683,1716930677831,-682.1,0.00029589,2]
[328140684,1716930677841,-613.37,0.00029589,2]
[328140685,1716930677850,-500.0,0.00029589,2]
[328140686,1716930677859,-870.5,0.00029589,2]
[328140687,1716930677868,-500.0,0.00029589,2]
[328140688,1716930677877,-746.34,0.00029589,2]
[328140689,1716930677886,-500.0,0.00029589,2]
[328140690,1716930677895,-500.0,0.00029589,2]
[328140691,1716930677905,-500.0,0.00029589,2]
[328140692,1716930677914,-613.05,0.00029589,2]
[328140693,1716930677923,-488.46794952,0.00029589,2]
[328140694,1716930677932,-758.6,0.00029589,2]
[328140695,1716930677942,-151.0,0.00029589,7]
[328140696,1716930677951,-500.0,0.00029589,2]
[328140697,1716930677960,-500.0,0.00029589,2]
[328140698,1716930677969,-471.6074395,0.00029589,2]
[328140699,1716930677979,-151.0,0.00029589,7]
[328140700,1716930677989,-500.0,0.00029589,2]
[328140701,1716930677998,-527.93,0.00029589,2]
[328140702,1716930678008,-535.29,0.00029589,2]
[328140703,1716930678018,-891.34,0.00029589,2]
[328140704,1716930678027,-500.0,0.00029589,2]
[328140705,1716930678036,-500.0,0.00029589,2]
[328140706,1716930678044,-500.0,0.00029589,2]
[328140707,1716930678053,-556.26,0.00029589,2]
[328140708,1716930678064,-500.0,0.00029589,2]
[328140709,1716930678073,-151.0,0.00029589,7]
[328140710,1716930678082,-617.75,0.00029589,2]
[328140711,1716930678091,-500.0,0.00029589,2]
[328140712,1716930678100,-655.52,0.00029589,2]
[328140713,1716930678109,-982.73,0.00029589,2]
[328140714,1716930678118,-500.0,0.00029589,2]
[328140715,1716930678127,-151.0,0.00029589,7]
[328140716,1716930678136,-500.0,0.00029589,2]
[328140717,1716930678146,-500.0,0.00029589,2]
[328140718,1716930678155,-500.0,0.00029589,2]
[328140719,1716930678165,-879.75,0.00029589,2]
[328140720,1716930678174,-500.0,0.00029589,2]
[328140721,1716930678182,-500.0,0.00029589,2]
[328140722,1716930678191,-500.0,0.00029589,2]
[328140723,1716930678200,-500.0,0.00029589,2]
[328140724,1716930678209,-598.93,0.00029589,2]
[328140725,1716930678218,-500.0,0.00029589,2]
[328140726,1716930678227,-607.01,0.00029589,2]
[328140727,1716930678236,-869.48,0.00029589,2]
[328140728,1716930678246,-500.0,0.00029589,2]
[328140729,1716930678254,-500.0,0.00029589,2]
[328140730,1716930678264,-515.25,0.00029589,2]
[328140731,1716930678273,-500.0,0.00029589,2]
[328140732,1716930678282,-501.39,0.00029589,2]
[328140733,1716930678291,-500.0,0.00029589,2]
[328140734,1716930678300,-500.0,0.00029589,2]
[328140735,1716930678314,-500.0,0.00029589,2]
[328140736,1716930678323,-500.0,0.00029589,2]
[328140737,1716930678332,-500.0,0.00029589,2]
[328140738,1716930678341,-500.0,0.00029589,2]
[328140739,1716930678351,-500.0,0.00029589,2]
[328140740,1716930678360,-500.0,0.00029589,2]
[328140741,1716930678369,-1260.25,0.00029589,2]
[328140742,1716930678379,-500.0,0.00029589,2]
[328140743,1716930678390,-500.0,0.00029589,2]
[328140744,1716930678399,-500.0,0.00029589,2]
[328140745,1716930678408,-554.17,0.00029589,2]
[328140746,1716930678419,-1185.96,0.00029589,2]
[328140747,1716930678428,-500.0,0.00029589,2]
[328140748,1716930678437,-500.0,0.00029589,2]
[328140749,1716930678447,-500.0,0.00029589,2]
[328140750,1716930678456,-172.94,0.00029589,2]
[328140751,1716930678465,-500.0,0.00029589,2]
[328140752,1716930678474,-500.0,0.00029589,2]
[328140753,1716930678490,-500.0,0.00029589,2]
[328140755,1716930678504,-500.0,0.00029589,2]
[328140756,1716930678517,-500.0,0.00029589,2]
[328140757,1716930678531,-500.0,0.00029589,2]
[328140758,1716930678546,-500.0,0.00029589,2]
[328140759,1716930678562,-500.0,0.00029589,2]
[328140760,1716930678577,-512.07,0.00029589,2]
[328140761,1716930678592,-500.0,0.00029589,2]
[328140762,1716930678606,-500.0,0.00029589,2]
[328140763,1716930678620,-500.0,0.00029589,2]
[328140764,1716930678634,-500.0,0.00029589,2]
[328140765,1716930678648,-577.36,0.00029589,2]
[328140766,1716930678660,-500.0,0.00029589,2]
[328140767,1716930678672,-500.0,0.00029589,2]
[328140768,1716930678687,-544.23,0.00029589,2]
[328140769,1716930678701,-917.76,0.00029589,2]
[328140770,1716930678716,-500.0,0.00029589,2]
[328140771,1716930678732,-500.0,0.00029589,2]
[328140772,1716930678743,-494.8429999,0.00029589,2]
[328140773,1716930678754,-433.93523424,0.00029589,2]
[328140774,1716930678767,-715.45,0.00029589,2]
[328140775,1716930678782,-504.89,0.00029589,2]
[328140776,1716930678794,-500.0,0.00029589,2]
[328140777,1716930678808,-500.0,0.00029589,2]
[328140778,1716930678821,-500.0,0.00029589,2]
[328140779,1716930678834,-500.0,0.00029589,2]
[328140780,1716930678845,-500.0,0.00029589,2]
[328140781,1716930678859,-611.87,0.00029589,2]
[328140782,1716930678871,-824.89,0.00029589,2]
[328140783,1716930678884,-500.0,0.00029589,2]
[328140784,1716930678897,-358.66020292,0.00029589,2]
[328140785,1716930678909,-500.0,0.00029589,2]
[328140786,1716930678921,-739.81,0.00029589,2]
[328140787,1716930678933,-500.0,0.00029589,2]
[328140788,1716930678946,-500.0,0.00029589,2]
[328140789,1716930678958,-1320.63,0.00029589,2]
[328140790,1716930678970,-500.0,0.00029589,2]
[328140791,1716930678983,-1793.48,0.00029589,2]
[328140792,1716930678995,-1192.64,0.00029589,2]
[328140793,1716930679008,-500.0,0.00029589,2]
[328140794,1716930679020,-500.0,0.00029589,2]
[328140795,1716930679032,-850.59,0.00029589,2]
[328140796,1716930679044,-550.9,0.00029589,2]
[328140797,1716930679056,-656.92,0.00029589,2]
[328140798,1716930679068,-9315.09,0.00029589,2]
[328140799,1716930679079,-806.35,0.00029589,2]
[328140800,1716930679091,-500.0,0.00029589,2]
[328140801,1716930679103,-15327.51,0.00029589,2]
[328140802,1716930679115,-635.68,0.00029589,2]
[328140803,1716930679127,-3419.04,0.00029589,2]
[328140804,1716930679138,-1271.68,0.00029589,2]
[328140805,1716930679150,-525.9,0.00029589,2]
[328140807,1716930679162,-1237.95,0.00029589,2]
[328140809,1716930679173,-5036.02,0.00029589,2]
[328140810,1716930679185,-2402.16,0.00029589,2]
[328140811,1716930679197,-583.74,0.00029589,2]
[328140812,1716930679208,-1081.68,0.00029589,2]
[328140813,1716930679220,-500.0,0.00029589,2]
[328140814,1716930679232,-2135.42,0.00029589,2]
[328140815,1716930679244,-500.0,0.00029589,2]
[328140816,1716930679257,-500.0,0.00029589,2]
[328140817,1716930679269,-500.0,0.00029589,2]
[328140818,1716930679280,-500.0,0.00029589,2]
[328140819,1716930679292,-874.24,0.00029589,2]
[328140820,1716930679304,-832.12,0.00029589,2]
[328140821,1716930679320,-889.71,0.00029589,2]
[328140822,1716930679331,-1494.87,0.00029589,2]
[328140823,1716930679344,-588.22,0.00029589,2]
[328140824,1716930679356,-753.43,0.00029589,2]
[328140825,1716930679369,-500.0,0.00029589,2]
[328140826,1716930679381,-656.49,0.00029589,2]
[328140827,1716930679394,-1040.11,0.00029589,2]
[328140828,1716930679407,-5379.01,0.00029589,2]
[328140829,1716930679420,-1151.4,0.00029589,2]
[328140830,1716930679431,-657.54,0.00029589,2]
[328140831,1716930679444,-2503.88,0.00029589,2]
[328140832,1716930679456,-500.0,0.00029589,2]
[328140833,1716930679468,-500.0,0.00029589,2]
[328140834,1716930679479,-992.19,0.00029589,2]
[328140835,1716930679491,-500.0,0.00029589,2]
[328140836,1716930679504,-523.58,0.00029589,2]
[328140837,1716930679517,-591.51,0.00029589,2]
[328140838,1716930679529,-2469.11,0.00029589,2]
[328140839,1716930679540,-500.0,0.00029589,2]
[328140840,1716930679552,-604.6,0.00029589,2]
[328140841,1716930679565,-500.0,0.00029589,2]
[328140842,1716930679577,-234.27564992,0.00029589,2]
[328140843,1716930679590,-1881.26,0.00029589,2]
[328140844,1716930679601,-1071.3,0.00029589,2]
[328140845,1716930679613,-1270.47,0.00029589,2]
[328140846,1716930679625,-8259.77,0.00029589,2]
[328140847,1716930679637,-500.0,0.00029589,2]
[328140848,1716930679648,-500.0,0.00029589,2]
[328140849,1716930679661,-1123.23,0.00029589,2]
[328140850,1716930679673,-2563.92,0.00029589,2]
[328140851,1716930679685,-500.0,0.00029589,2]
[328140852,1716930679698,-1027.88,0.00029589,2]
[328140853,1716930679710,-772.72,0.00029589,2]
[328140854,1716930679722,-887.31,0.00029589,2]
[328140855,1716930679734,-914.87,0.00029589,2]
[328140856,1716930679746,-500.0,0.00029589,2]
[328140857,1716930679757,-4971.2,0.00029589,2]
[328140858,1716930679769,-1127.13,0.00029589,2]
[328140859,1716930679781,-571.26,0.00029589,2]
[328140860,1716930679793,-590.27,0.00029589,2]
[328140861,1716930679806,-500.0,0.00029589,2]
[328140862,1716930679819,-500.0,0.00029589,2]
[328140863,1716930679831,-606.32,0.00029589,2]
[328140864,1716930679844,-824.0,0.00029589,2]
[328140865,1716930679856,-500.0,0.00029589,2]
[328140866,1716930679868,-853.64,0.00029589,2]
[328140867,1716930679882,-745.85,0.00029589,2]
[328140868,1716930679894,-585.71,0.00029589,2]
[328140869,1716930679906,-623.81746922,0.00029589,2]
[328140870,1716930679917,-1137.45,0.00029589,2]
[328140871,1716930679929,-1448.06,0.00029589,2]
[328140872,1716930679941,-539.51,0.00029589,2]
[328140873,1716930679954,-2302.76,0.00029589,2]
[328140874,1716930679965,-3336.18,0.00029589,2]
[328140875,1716930679977,-500.0,0.00029589,2]
[328140876,1716930679989,-1236.12,0.00029589,2]
[328140877,1716930680001,-500.0,0.00029589,2]
[328140878,1716930680012,-500.0,0.00029589,2]
[328140879,1716930680025,-359.56450529,0.00029589,2]
[328140880,1716930680037,-885.34,0.00029589,2]
[328140881,1716930680049,-1036.79,0.00029589,2]
[328140882,1716930680062,-602.93,0.00029589,2]
[328140883,1716930680283,-13852.98,0.00029589,2]
[328140884,1716930680299,-1313.69,0.00029589,2]
[328140885,1716930680312,-1592.22,0.00029589,2]
[328140886,1716930680321,-916.61,0.00029589,2]
[328140887,1716930680330,-1158.67,0.00029589,2]
[328140888,1716930680339,-2650.73,0.00029589,2]
[328140889,1716930680351,-500.0,0.00029589,2]
[328140890,1716930680360,-4639.4,0.00029589,2]
[328140891,1716930680370,-500.0,0.00029589,2]
[328140892,1716930680379,-720.94,0.00029589,2]
[328140893,1716930680389,-850.51,0.00029589,2]
[328140894,1716930680399,-1212.71,0.00029589,2]
[328140895,1716930680408,-1305.79,0.00029589,2]
[328140896,1716930680418,-1077.58,0.00029589,2]
[328140897,1716930680427,-564.13,0.00029589,2]
[328140898,1716930680436,-789.13,0.00029589,2]
[328140899,1716930680446,-928.91,0.00029589,2]
[328140900,1716930680455,-500.0,0.00029589,2]
[328140901,1716930680464,-500.0,0.00029589,2]
[328140902,1716930680473,-920.12,0.00029589,2]
[328140903,1716930680483,-717.42,0.00029589,2]
[328140904,1716930680492,-881.35,0.00029589,2]
[328140905,1716930680502,-500.0,0.00029589,2]
[328140906,1716930680512,-654.73,0.00029589,2]
[328140907,1716930680522,-500.0,0.00029589,2]
[328140908,1716930680532,-3338.18,0.00029589,2]
[328140909,1716930680542,-500.0,0.00029589,2]
[328140910,1716930680553,-500.0,0.00029589,2]
[328140911,1716930680564,-1966.13,0.00029589,2]
[328140912,1716930680574,-570.33,0.00029589,2]
[328140913,1716930680583,-500.0,0.00029589,2]
[328140914,1716930680593,-500.0,0.00029589,2]
[328140915,1716930680604,-500.0,0.00029589,2]
[328140916,1716930680613,-500.0,0.00029589,2]
[328140917,1716930680622,-1420.49,0.00029589,2]
[328140918,1716930680632,-1625.97,0.00029589,2]
[328140919,1716930680642,-500.0,0.00029589,2]
[328140920,1716930680651,-647.0,0.00029589,2]
[328140921,1716930680661,-500.0,0.00029589,2]
[328140922,1716930680671,-1101.55,0.00029589,2]
[328140923,1716930680681,-500.0,0.00029589,2]
[328140924,1716930680691,-5271.34,0.00029589,2]
[328140925,1716930680700,-896.38,0.00029589,2]
[328140926,1716930680710,-4085.09,0.00029589,2]
[328140927,1716930680720,-500.0,0.00029589,2]
[328140928,1716930680730,-500.0,0.00029589,2]
[328140929,1716930680739,-3085.09,0.00029589,2]
[328140930,1716930680749,-1027.97,0.00029589,2]
[328140931,1716930680759,-678.18,0.00029589,2]
[328140932,1716930680768,-607.8,0.00029589,2]
[328140933,1716930680777,-707.12,0.00029589,2]
[328140934,1716930680786,-500.0,0.00029589,2]
[328140935,1716930680796,-2974.94,0.00029589,2]
[328140936,1716930680805,-1217.15,0.00029589,2]
[328140937,1716930680816,-1190.26,0.00029589,2]
[328140938,1716930680826,-592.19,0.00029589,2]
[328140939,1716930680836,-500.0,0.00029589,2]
[328140940,1716930680846,-4371.46,0.00029589,2]
[328140941,1716930680856,-1044.37,0.00029589,2]
[328140942,1716930680866,-500.0,0.00029589,2]
[328140943,1716930680877,-500.0,0.00029589,2]
[328140944,1716930680886,-513.35,0.00029589,2]
[328140945,1716930680896,-1474.98,0.00029589,2]
[328140946,1716930680906,-500.0,0.00029589,2]
[328140947,1716930680916,-500.0,0.00029589,2]
[328140948,1716930680926,-3176.31,0.00029589,2]
[328140949,1716930680935,-687.58,0.00029589,2]
[328140950,1716930680946,-3513.06,0.00029589,2]
[328140951,1716930680955,-576.75,0.00029589,2]
[328140952,1716930680965,-705.7,0.00029589,2]